[Event "Titled Tuesday Blitz June 07 Early 2022"]
[White "Stribuk, Artiom"]
[Black "Volkov, Maksim"]
[WhiteFideId "13515659"]
[BlackFideId "54123070"]
[WhiteElo "2259"]
[BlackElo "2155"]
[Result "0-1"]
[Round "08"]
[TimeControl "180+1"]
[Date "2022.06.07"]
[WhiteClock "0:00:08"]
[BlackClock "0:00:24"]

1. d4 {[%clk 0:03:00]}  d5 {[%clk 0:02:59]} 2. c4 {[%clk 0:02:59]}  e6 {[%clk 0:03:00]} 3. Nc3 {[%clk 0:02:57]}  c6 {[%clk 0:02:59]} 4. g3 {[%clk 0:02:57]}  Nf6 {[%clk 0:02:49]} 5. Bg2 {[%clk 0:02:55]}  dxc4 {[%clk 0:02:44]} 6. Nf3 {[%clk 0:02:52]}  b5 {[%clk 0:02:44]} 7. Ne5 {[%clk 0:02:50]}  Nd5 {[%clk 0:02:34]} 8. O-O {[%clk 0:02:43]}  Bb7 {[%clk 0:02:32]} 9. e4 {[%clk 0:02:38]}  Nxc3 {[%clk 0:02:23]} 10. bxc3 {[%clk 0:02:39]}  Nd7 {[%clk 0:02:23]} 11. Bf4 {[%clk 0:02:38]}  Be7 {[%clk 0:02:13]} 12. Qg4 {[%clk 0:02:36]}  g5 {[%clk 0:01:51]} 13. Qh5 {[%clk 0:02:23]}  Nxe5 {[%clk 0:01:33]} 14. Bxe5 {[%clk 0:02:24]}  Bf6 {[%clk 0:01:33]} 15. f4 {[%clk 0:02:11]}  Bxe5 {[%clk 0:01:18]} 16. fxe5 {[%clk 0:02:05]}  Qe7 {[%clk 0:01:16]} 17. Rf6 {[%clk 0:02:01]}  h6 {[%clk 0:01:16]} 18. Raf1 {[%clk 0:02:01]}  Rh7 {[%clk 0:01:13]} 19. Rxh6 {[%clk 0:01:55]}  Rxh6 {[%clk 0:01:11]} 20. Qxh6 {[%clk 0:01:55]}  O-O-O {[%clk 0:01:12]} 21. Qf6 {[%clk 0:01:47]}  Qa3 {[%clk 0:01:11]} 22. Qxf7 {[%clk 0:01:45]}  Qxc3 {[%clk 0:01:11]} 23. Qxe6+ {[%clk 0:01:45]}  Kb8 {[%clk 0:01:12]} 24. d5 {[%clk 0:01:45]}  cxd5 {[%clk 0:01:09]} 25. exd5 {[%clk 0:01:46]}  Qd4+ {[%clk 0:01:06]} 26. Rf2 {[%clk 0:01:00]}  Bxd5 {[%clk 0:00:49]} 27. Bxd5 {[%clk 0:00:57]}  Qxd5 {[%clk 0:00:44]} 28. Qxd5 {[%clk 0:00:38]}  Rxd5 {[%clk 0:00:45]} 29. Re2 {[%clk 0:00:39]}  Kc7 {[%clk 0:00:43]} 30. Kf2 {[%clk 0:00:39]}  b4 {[%clk 0:00:37]} 31. Kf3 {[%clk 0:00:39]}  c3 {[%clk 0:00:36]} 32. h4 {[%clk 0:00:25]}  gxh4 {[%clk 0:00:33]} 33. gxh4 {[%clk 0:00:26]}  Kd7 {[%clk 0:00:27]} 34. h5 {[%clk 0:00:23]}  Ke6 {[%clk 0:00:28]} 35. h6 {[%clk 0:00:19]}  Rd7 {[%clk 0:00:27]} 36. Kg4 {[%clk 0:00:17]}  a5 {[%clk 0:00:24]} 37. Kg5 {[%clk 0:00:13]}  a4 {[%clk 0:00:24]} 38. Re4 {[%clk 0:00:06]}  c2 {[%clk 0:00:24]} 39. Rc4 {[%clk 0:00:06]}  b3 {[%clk 0:00:24]} 40. axb3 {[%clk 0:00:07]}  axb3 {[%clk 0:00:25]} 41. Kg6 {[%clk 0:00:07]}  b2 {[%clk 0:00:24]} 42. Rc6+ {[%clk 0:00:08]}  Kxe5 {[%clk 0:00:24]} 0-1


[Site "https://www.chess.com"]

[Event "Titled Tuesday Blitz June 07 Early 2022"]
[White "Suleymanli, Aydin"]
[Black "Sjugirov, Sanan"]
[WhiteFideId "13413937"]
[BlackFideId "4189302"]
[WhiteElo "2481"]
[BlackElo "2602"]
[Result "1-0"]
[Round "08"]
[TimeControl "180+1"]
[Date "2022.06.07"]
[WhiteClock "0:00:12"]
[BlackClock "0:00:02"]

1. Nf3 {[%clk 0:03:00]}  d5 {[%clk 0:02:59]} 2. e3 {[%clk 0:03:00]}  Nf6 {[%clk 0:02:59]} 3. c4 {[%clk 0:03:00]}  e6 {[%clk 0:02:59]} 4. b3 {[%clk 0:03:00]}  c5 {[%clk 0:02:52]} 5. Bb2 {[%clk 0:03:00]}  Nc6 {[%clk 0:02:51]} 6. g3 {[%clk 0:03:01]}  d4 {[%clk 0:02:42]} 7. exd4 {[%clk 0:02:57]}  cxd4 {[%clk 0:02:42]} 8. Bg2 {[%clk 0:02:58]}  e5 {[%clk 0:02:30]} 9. O-O {[%clk 0:02:57]}  Bd6 {[%clk 0:02:30]} 10. d3 {[%clk 0:02:58]}  O-O {[%clk 0:02:29]} 11. Nh4 {[%clk 0:02:54]}  a5 {[%clk 0:02:22]} 12. a3 {[%clk 0:02:51]}  Bg4 {[%clk 0:02:15]} 13. Qc2 {[%clk 0:02:38]}  Nd7 {[%clk 0:02:00]} 14. Nd2 {[%clk 0:02:37]}  Rc8 {[%clk 0:01:52]} 15. Rae1 {[%clk 0:02:30]}  Re8 {[%clk 0:01:47]} 16. Bd5 {[%clk 0:02:14]}  Bh3 {[%clk 0:01:34]} 17. Bg2 {[%clk 0:02:10]}  Bxg2 {[%clk 0:01:25]} 18. Kxg2 {[%clk 0:02:10]}  Bf8 {[%clk 0:01:22]} 19. f4 {[%clk 0:01:57]}  exf4 {[%clk 0:01:20]} 20. Rxe8 {[%clk 0:01:57]}  Qxe8 {[%clk 0:01:21]} 21. Rxf4 {[%clk 0:01:57]}  Nc5 {[%clk 0:00:49]} 22. Ne4 {[%clk 0:01:54]}  b6 {[%clk 0:00:28]} 23. Nf5 {[%clk 0:01:46]}  Nxe4 {[%clk 0:00:16]} 24. Rxe4 {[%clk 0:01:45]}  Qd7 {[%clk 0:00:16]} 25. Nxd4 {[%clk 0:01:13]}  f5 {[%clk 0:00:16]} 26. Rf4 {[%clk 0:01:03]}  Bd6 {[%clk 0:00:07]} 27. Rf1 {[%clk 0:00:22]}  Nxd4 {[%clk 0:00:07]} 28. Bxd4 {[%clk 0:00:22]}  Bxa3 {[%clk 0:00:07]} 29. Ba1 {[%clk 0:00:18]}  Bc5 {[%clk 0:00:03]} 30. d4 {[%clk 0:00:16]}  Bxd4 {[%clk 0:00:02]} 31. Bxd4 {[%clk 0:00:17]}  Qxd4 {[%clk 0:00:02]} 32. Qxf5 {[%clk 0:00:17]}  Qc5 {[%clk 0:00:01]} 33. Qe6+ {[%clk 0:00:13]}  Kh8 {[%clk 0:00:02]} 34. Rf5 {[%clk 0:00:13]}  Qc6+ {[%clk 0:00:01]} 35. Qxc6 {[%clk 0:00:12]}  Rxc6 {[%clk 0:00:02]} 36. Rf8# {[%clk 0:00:12]} 1-0


[Site "https://www.chess.com"]

[Event "Titled Tuesday Blitz June 07 Early 2022"]
[White "Svane, Frederik"]
[Black "Lazavik, Denis"]
[WhiteFideId "12923044"]
[BlackFideId "13515110"]
[WhiteElo "2459"]
[BlackElo "2437"]
[Result "1/2-1/2"]
[Round "08"]
[TimeControl "180+1"]
[Date "2022.06.07"]
[WhiteClock "0:00:08"]
[BlackClock "0:00:07"]

1. e4 {[%clk 0:03:00]}  e5 {[%clk 0:02:59]} 2. Nf3 {[%clk 0:03:01]}  Nc6 {[%clk 0:02:59]} 3. Nc3 {[%clk 0:03:01]}  Nf6 {[%clk 0:02:59]} 4. Bb5 {[%clk 0:03:02]}  Nd4 {[%clk 0:02:59]} 5. O-O {[%clk 0:02:59]}  Nxb5 {[%clk 0:02:56]} 6. Nxb5 {[%clk 0:03:00]}  c6 {[%clk 0:02:56]} 7. Nc3 {[%clk 0:03:01]}  d6 {[%clk 0:02:56]} 8. d4 {[%clk 0:03:02]}  Qc7 {[%clk 0:02:56]} 9. Bg5 {[%clk 0:03:00]}  Be7 {[%clk 0:02:56]} 10. Re1 {[%clk 0:03:00]}  O-O {[%clk 0:02:55]} 11. h3 {[%clk 0:03:00]}  b5 {[%clk 0:02:54]} 12. a3 {[%clk 0:02:52]}  a5 {[%clk 0:02:48]} 13. d5 {[%clk 0:02:50]}  Bb7 {[%clk 0:02:44]} 14. Bxf6 {[%clk 0:02:14]}  Bxf6 {[%clk 0:02:44]} 15. dxc6 {[%clk 0:01:50]}  Bxc6 {[%clk 0:02:41]} 16. Qd3 {[%clk 0:01:50]}  b4 {[%clk 0:02:33]} 17. axb4 {[%clk 0:01:51]}  axb4 {[%clk 0:02:33]} 18. Rxa8 {[%clk 0:01:52]}  Rxa8 {[%clk 0:02:18]} 19. Nd5 {[%clk 0:01:52]}  Bxd5 {[%clk 0:02:18]} 20. Qxd5 {[%clk 0:01:52]}  Rc8 {[%clk 0:02:04]} 21. Re2 {[%clk 0:01:52]}  Qc4 {[%clk 0:01:57]} 22. Qxc4 {[%clk 0:01:51]}  Rxc4 {[%clk 0:01:58]} 23. b3 {[%clk 0:01:43]}  Rc8 {[%clk 0:01:23]} 24. Ne1 {[%clk 0:01:36]}  Kf8 {[%clk 0:01:12]} 25. Nd3 {[%clk 0:01:36]}  Rb8 {[%clk 0:01:13]} 26. Nb2 {[%clk 0:01:29]}  Ke7 {[%clk 0:01:10]} 27. Nc4 {[%clk 0:01:29]}  Ke6 {[%clk 0:01:09]} 28. Ne3 {[%clk 0:01:29]}  Bd8 {[%clk 0:01:03]} 29. Nd5 {[%clk 0:01:24]}  Bb6 {[%clk 0:01:02]} 30. Nxb4 {[%clk 0:00:59]}  Bxf2+ {[%clk 0:00:59]} 31. Kxf2 {[%clk 0:01:00]}  Rxb4 {[%clk 0:00:59]} 32. Ke3 {[%clk 0:00:57]}  f5 {[%clk 0:00:59]} 33. exf5+ {[%clk 0:00:57]}  Kxf5 {[%clk 0:01:00]} 34. Rf2+ {[%clk 0:00:56]}  Ke6 {[%clk 0:01:00]} 35. Rf8 {[%clk 0:00:50]}  d5 {[%clk 0:00:59]} 36. Rg8 {[%clk 0:00:48]}  Rb7 {[%clk 0:00:57]} 37. Re8+ {[%clk 0:00:48]}  Kf6 {[%clk 0:00:57]} 38. Rd8 {[%clk 0:00:47]}  Ke6 {[%clk 0:00:57]} 39. Re8+ {[%clk 0:00:47]}  Kf6 {[%clk 0:00:56]} 40. Rc8 {[%clk 0:00:42]}  h5 {[%clk 0:00:52]} 41. Rh8 {[%clk 0:00:34]}  g6 {[%clk 0:00:50]} 42. Rd8 {[%clk 0:00:31]}  Rc7 {[%clk 0:00:44]} 43. Rxd5 {[%clk 0:00:15]}  Rxc2 {[%clk 0:00:43]} 44. Rd2 {[%clk 0:00:13]}  Rc3+ {[%clk 0:00:41]} 45. Rd3 {[%clk 0:00:14]}  Rc2 {[%clk 0:00:42]} 46. Kf3 {[%clk 0:00:07]}  h4 {[%clk 0:00:37]} 47. Re3 {[%clk 0:00:03]}  Kf5 {[%clk 0:00:37]} 48. Re2 {[%clk 0:00:03]}  Rc3+ {[%clk 0:00:30]} 49. Re3 {[%clk 0:00:03]}  Rc1 {[%clk 0:00:29]} 50. Kf2 {[%clk 0:00:02]}  e4 {[%clk 0:00:27]} 51. Re2 {[%clk 0:00:02]}  Rb1 {[%clk 0:00:26]} 52. Rc2 {[%clk 0:00:02]}  Kf4 {[%clk 0:00:25]} 53. Rc3 {[%clk 0:00:01]}  Rb2+ {[%clk 0:00:24]} 54. Kf1 {[%clk 0:00:02]}  g5 {[%clk 0:00:23]} 55. Kg1 {[%clk 0:00:01]}  g4 {[%clk 0:00:10]} 56. hxg4 {[%clk 0:00:02]}  e3 {[%clk 0:00:11]} 57. Kf1 {[%clk 0:00:02]}  Rf2+ {[%clk 0:00:10]} 58. Kg1 {[%clk 0:00:02]}  Rb2 {[%clk 0:00:07]} 59. Kf1 {[%clk 0:00:03]}  Ra2 {[%clk 0:00:08]} 60. b4 {[%clk 0:00:03]}  Rb2 {[%clk 0:00:08]} 61. g5 {[%clk 0:00:03]}  Rb1+ {[%clk 0:00:07]} 62. Ke2 {[%clk 0:00:03]}  Rb2+ {[%clk 0:00:06]} 63. Kf1 {[%clk 0:00:04]}  Rxb4 {[%clk 0:00:07]} 64. g6 {[%clk 0:00:04]}  Rb7 {[%clk 0:00:06]} 65. Rc4+ {[%clk 0:00:04]}  Kg3 {[%clk 0:00:05]} 66. Re4 {[%clk 0:00:05]}  Rg7 {[%clk 0:00:02]} 67. Rxe3+ {[%clk 0:00:05]}  Kf4 {[%clk 0:00:03]} 68. Re6 {[%clk 0:00:05]}  Kg5 {[%clk 0:00:03]} 69. Rc6 {[%clk 0:00:05]}  Rxg6 {[%clk 0:00:03]} 70. Rxg6+ {[%clk 0:00:06]}  Kxg6 {[%clk 0:00:04]} 71. Kg1 {[%clk 0:00:06]}  Kh5 {[%clk 0:00:04]} 72. Kh2 {[%clk 0:00:07]}  Kg5 {[%clk 0:00:05]} 73. Kh3 {[%clk 0:00:07]}  Kh5 {[%clk 0:00:06]} 74. g3 {[%clk 0:00:07]}  hxg3 {[%clk 0:00:07]} 75. Kxg3 {[%clk 0:00:08]} 1/2-1/2


[Site "https://www.chess.com"]

[Event "Titled Tuesday Blitz June 07 Early 2022"]
[White "Thavandiran, Shiyam"]
[Black "Vasquez Schroeder, Rodrigo"]
[WhiteFideId "2605058"]
[BlackFideId "3400042"]
[WhiteElo "2357"]
[BlackElo "2567"]
[Result "0-1"]
[Round "08"]
[TimeControl "180+1"]
[Date "2022.06.07"]
[WhiteClock "0:00:01"]
[BlackClock "0:00:19"]

1. e4 {[%clk 0:03:00]}  c5 {[%clk 0:02:59]} 2. Nc3 {[%clk 0:03:01]}  Nc6 {[%clk 0:02:56]} 3. g3 {[%clk 0:03:01]}  g6 {[%clk 0:02:56]} 4. Bg2 {[%clk 0:03:02]}  Bg7 {[%clk 0:02:56]} 5. d3 {[%clk 0:03:02]}  d6 {[%clk 0:02:54]} 6. Be3 {[%clk 0:03:00]}  e5 {[%clk 0:02:54]} 7. Nd5 {[%clk 0:02:52]}  Nge7 {[%clk 0:02:51]} 8. Qd2 {[%clk 0:02:45]}  Nxd5 {[%clk 0:02:45]} 9. exd5 {[%clk 0:02:45]}  Nd4 {[%clk 0:02:45]} 10. h4 {[%clk 0:02:42]}  h5 {[%clk 0:02:42]} 11. c3 {[%clk 0:02:34]}  Nf5 {[%clk 0:02:41]} 12. Ne2 {[%clk 0:02:33]}  Bd7 {[%clk 0:02:37]} 13. O-O {[%clk 0:02:19]}  O-O {[%clk 0:02:36]} 14. c4 {[%clk 0:02:02]}  b5 {[%clk 0:02:33]} 15. Nc3 {[%clk 0:02:01]}  bxc4 {[%clk 0:02:22]} 16. dxc4 {[%clk 0:02:02]}  Nxe3 {[%clk 0:02:20]} 17. Qxe3 {[%clk 0:01:52]}  f5 {[%clk 0:02:20]} 18. Kh2 {[%clk 0:01:35]}  Rb8 {[%clk 0:02:18]} 19. b3 {[%clk 0:01:29]}  Kh7 {[%clk 0:02:16]} 20. Rae1 {[%clk 0:01:27]}  Qf6 {[%clk 0:02:15]} 21. Qc1 {[%clk 0:01:24]}  a6 {[%clk 0:02:10]} 22. Qa3 {[%clk 0:01:19]}  Ra8 {[%clk 0:01:57]} 23. Qa5 {[%clk 0:01:19]}  Qd8 {[%clk 0:01:55]} 24. Qa3 {[%clk 0:01:14]}  e4 {[%clk 0:01:46]} 25. Ne2 {[%clk 0:01:14]}  Be5 {[%clk 0:01:46]} 26. Kg1 {[%clk 0:01:08]}  f4 {[%clk 0:01:35]} 27. Nxf4 {[%clk 0:01:06]}  Bxf4 {[%clk 0:01:34]} 28. gxf4 {[%clk 0:01:06]}  Rxf4 {[%clk 0:01:33]} 29. Rxe4 {[%clk 0:01:04]}  Rxe4 {[%clk 0:01:33]} 30. Bxe4 {[%clk 0:01:05]}  Qxh4 {[%clk 0:01:33]} 31. Bg2 {[%clk 0:01:04]}  Bh3 {[%clk 0:01:23]} 32. Bxh3 {[%clk 0:00:58]}  Qxh3 {[%clk 0:01:23]} 33. Re1 {[%clk 0:00:57]}  Qg4+ {[%clk 0:01:12]} 34. Kf1 {[%clk 0:00:57]}  Qh4 {[%clk 0:01:12]} 35. Qc1 {[%clk 0:00:49]}  Rf8 {[%clk 0:01:10]} 36. Qe3 {[%clk 0:00:49]}  Rf7 {[%clk 0:01:05]} 37. Kg2 {[%clk 0:00:34]}  Qf6 {[%clk 0:00:53]} 38. Qg3 {[%clk 0:00:31]}  h4 {[%clk 0:00:53]} 39. Rh1 {[%clk 0:00:28]}  g5 {[%clk 0:00:52]} 40. Qd3+ {[%clk 0:00:28]}  Kh6 {[%clk 0:00:52]} 41. Qe3 {[%clk 0:00:21]}  Kh5 {[%clk 0:00:51]} 42. Re1 {[%clk 0:00:13]}  g4 {[%clk 0:00:46]} 43. Re2 {[%clk 0:00:09]}  Qf3+ {[%clk 0:00:45]} 44. Kg1 {[%clk 0:00:09]}  Qxe3 {[%clk 0:00:41]} 45. Rxe3 {[%clk 0:00:10]}  Rf6 {[%clk 0:00:41]} 46. Re8 {[%clk 0:00:07]}  Kg5 {[%clk 0:00:26]} 47. Ra8 {[%clk 0:00:04]}  Kf4 {[%clk 0:00:20]} 48. Rxa6 {[%clk 0:00:03]}  Kf3 {[%clk 0:00:20]} 49. Ra8 {[%clk 0:00:03]}  Rf4 {[%clk 0:00:20]} 50. Re8 {[%clk 0:00:03]}  Rd4 {[%clk 0:00:18]} 51. Re3+ {[%clk 0:00:03]}  Kf4 {[%clk 0:00:19]} 52. a4 {[%clk 0:00:01]}  Rd1+ {[%clk 0:00:18]} 53. Kg2 {[%clk 0:00:01]}  h3+ {[%clk 0:00:19]} 54. Kh2 {[%clk 0:00:01]}  Rf1 {[%clk 0:00:19]} 0-1


[Site "https://www.chess.com"]

[Event "Titled Tuesday Blitz June 07 Early 2022"]
[White "Xu, Yi"]
[Black "Le, Tuan Minh"]
[WhiteFideId "8605564"]
[BlackFideId "12401153"]
[WhiteElo "2471"]
[BlackElo "2530"]
[Result "0-1"]
[Round "08"]
[TimeControl "180+1"]
[Date "2022.06.07"]
[WhiteClock "0:00:04"]
[BlackClock "0:00:14"]

1. e4 {[%clk 0:02:58]}  c5 {[%clk 0:02:47]} 2. Nf3 {[%clk 0:02:58]}  Nf6 {[%clk 0:02:48]} 3. e5 {[%clk 0:02:56]}  Nd5 {[%clk 0:02:48]} 4. Nc3 {[%clk 0:02:57]}  e6 {[%clk 0:02:49]} 5. Nxd5 {[%clk 0:02:56]}  exd5 {[%clk 0:02:50]} 6. d4 {[%clk 0:02:56]}  Nc6 {[%clk 0:02:50]} 7. dxc5 {[%clk 0:02:50]}  Bxc5 {[%clk 0:02:51]} 8. Qxd5 {[%clk 0:02:51]}  d6 {[%clk 0:02:51]} 9. exd6 {[%clk 0:02:36]}  Qb6 {[%clk 0:02:51]} 10. Qe4+ {[%clk 0:02:22]}  Be6 {[%clk 0:02:50]} 11. Qh4 {[%clk 0:02:19]}  Bxd6 {[%clk 0:02:49]} 12. Be2 {[%clk 0:02:17]}  O-O {[%clk 0:02:41]} 13. O-O {[%clk 0:02:12]}  Bf5 {[%clk 0:02:14]} 14. c3 {[%clk 0:02:09]}  Rfe8 {[%clk 0:02:13]} 15. Qc4 {[%clk 0:02:01]}  Bg6 {[%clk 0:01:40]} 16. Qb5 {[%clk 0:01:34]}  Qc7 {[%clk 0:01:40]} 17. Be3 {[%clk 0:01:26]}  a6 {[%clk 0:01:40]} 18. Qb3 {[%clk 0:01:11]}  Bh5 {[%clk 0:01:38]} 19. h3 {[%clk 0:01:07]}  Ne5 {[%clk 0:01:36]} 20. Nxe5 {[%clk 0:01:03]}  Bxe2 {[%clk 0:01:36]} 21. Rfe1 {[%clk 0:01:03]}  Bb5 {[%clk 0:01:34]} 22. Nf3 {[%clk 0:00:57]}  h6 {[%clk 0:01:30]} 23. Nd4 {[%clk 0:00:55]}  Bc4 {[%clk 0:01:28]} 24. Qc2 {[%clk 0:00:55]}  Rad8 {[%clk 0:01:26]} 25. Rad1 {[%clk 0:00:48]}  Bf8 {[%clk 0:01:00]} 26. a3 {[%clk 0:00:45]}  b5 {[%clk 0:00:58]} 27. Nf3 {[%clk 0:00:44]}  Bd5 {[%clk 0:00:54]} 28. Qf5 {[%clk 0:00:35]}  Qb7 {[%clk 0:00:45]} 29. Bd4 {[%clk 0:00:29]}  Be4 {[%clk 0:00:39]} 30. Qg4 {[%clk 0:00:29]}  Re6 {[%clk 0:00:32]} 31. Ne5 {[%clk 0:00:22]}  Bc2 {[%clk 0:00:25]} 32. Rc1 {[%clk 0:00:21]}  Bh7 {[%clk 0:00:26]} 33. Qf3 {[%clk 0:00:14]}  Qc7 {[%clk 0:00:21]} 34. Ng4 {[%clk 0:00:14]}  Rg6 {[%clk 0:00:20]} 35. Ne3 {[%clk 0:00:11]}  Qd7 {[%clk 0:00:17]} 36. Rcd1 {[%clk 0:00:10]}  Qc8 {[%clk 0:00:17]} 37. Be5 {[%clk 0:00:10]}  Re8 {[%clk 0:00:17]} 38. Bg3 {[%clk 0:00:10]}  Rge6 {[%clk 0:00:17]} 39. Rf1 {[%clk 0:00:09]}  Be4 {[%clk 0:00:17]} 40. Qe2 {[%clk 0:00:09]}  Bb7 {[%clk 0:00:16]} 41. Qc2 {[%clk 0:00:08]}  Qc6 {[%clk 0:00:15]} 42. Kh2 {[%clk 0:00:06]}  g6 {[%clk 0:00:14]} 43. Rg1 {[%clk 0:00:06]}  h5 {[%clk 0:00:14]} 44. Rde1 {[%clk 0:00:06]}  Bc5 {[%clk 0:00:14]} 45. Bf4 {[%clk 0:00:06]}  Re4 {[%clk 0:00:14]} 46. Bg3 {[%clk 0:00:05]}  h4 {[%clk 0:00:14]} 47. Bxh4 {[%clk 0:00:04]}  Rxh4 {[%clk 0:00:13]} 48. Ng4 {[%clk 0:00:04]}  Rxe1 {[%clk 0:00:13]} 49. Rxe1 {[%clk 0:00:04]}  Qxg2# {[%clk 0:00:14]} 0-1


[Site "https://www.chess.com"]

[Event "Titled Tuesday Blitz June 07 Early 2022"]
[White "Adla, Diego"]
[Black "Wagner, Dennis"]
[WhiteFideId "100072"]
[BlackFideId "24650684"]
[WhiteElo "2377"]
[BlackElo "2355"]
[Result "1-0"]
[Round "09"]
[TimeControl "180+1"]
[Date "2022.06.07"]
[WhiteClock "0:00:42"]
[BlackClock "0:00:02"]

1. c4 {[%clk 0:03:00]}  e5 {[%clk 0:02:55]} 2. Nc3 {[%clk 0:03:01]}  Bb4 {[%clk 0:02:53]} 3. Nf3 {[%clk 0:02:59]}  Bxc3 {[%clk 0:02:49]} 4. bxc3 {[%clk 0:02:56]}  e4 {[%clk 0:02:33]} 5. Nd4 {[%clk 0:02:57]}  Nf6 {[%clk 0:02:34]} 6. g3 {[%clk 0:02:54]}  O-O {[%clk 0:02:33]} 7. Bg2 {[%clk 0:02:54]}  Re8 {[%clk 0:02:31]} 8. O-O {[%clk 0:02:55]}  d5 {[%clk 0:02:31]} 9. cxd5 {[%clk 0:02:49]}  Qxd5 {[%clk 0:02:30]} 10. d3 {[%clk 0:02:47]}  Qh5 {[%clk 0:02:09]} 11. Rb1 {[%clk 0:02:27]}  Nc6 {[%clk 0:01:48]} 12. Nxc6 {[%clk 0:02:22]}  bxc6 {[%clk 0:01:49]} 13. Bf4 {[%clk 0:02:14]}  Bh3 {[%clk 0:01:39]} 14. Qd2 {[%clk 0:01:58]}  Rad8 {[%clk 0:00:25]} 15. Bxc7 {[%clk 0:01:54]}  Rd7 {[%clk 0:00:24]} 16. Bf4 {[%clk 0:01:30]}  h6 {[%clk 0:00:12]} 17. Rb8 {[%clk 0:01:15]}  Rxb8 {[%clk 0:00:11]} 18. Bxb8 {[%clk 0:01:15]}  Ng4 {[%clk 0:00:07]} 19. f3 {[%clk 0:01:12]}  Bxg2 {[%clk 0:00:04]} 20. fxg4 {[%clk 0:01:10]}  Qh3 {[%clk 0:00:04]} 21. Rf2 {[%clk 0:01:11]}  e3 {[%clk 0:00:01]} 22. Qxe3 {[%clk 0:01:08]}  Bd5 {[%clk 0:00:01]} 23. c4 {[%clk 0:01:06]}  Be6 {[%clk 0:00:01]} 24. g5 {[%clk 0:01:00]}  Rb7 {[%clk 0:00:01]} 25. Rf1 {[%clk 0:00:59]}  Rxb8 {[%clk 0:00:01]} 26. gxh6 {[%clk 0:00:59]}  Qxh6 {[%clk 0:00:02]} 27. Qe5 {[%clk 0:00:59]}  Rd8 {[%clk 0:00:02]} 28. Rf4 {[%clk 0:00:55]}  Qg6 {[%clk 0:00:02]} 29. Qc5 {[%clk 0:00:54]}  Qh6 {[%clk 0:00:01]} 30. Qxa7 {[%clk 0:00:53]}  Qg5 {[%clk 0:00:01]} 31. Qe3 {[%clk 0:00:51]}  Qa5 {[%clk 0:00:01]} 32. Re4 {[%clk 0:00:47]}  Rb8 {[%clk 0:00:02]} 33. Kg2 {[%clk 0:00:42]} 1-0


[Site "https://www.chess.com"]

[Event "Titled Tuesday Blitz June 07 Early 2022"]
[White "Andreikin, Dmitry"]
[Black "Svane, Frederik"]
[WhiteFideId "4158814"]
[BlackFideId "12923044"]
[WhiteElo "2736"]
[BlackElo "2459"]
[Result "0-1"]
[Round "09"]
[TimeControl "180+1"]
[Date "2022.06.07"]
[WhiteClock "0:00:06"]
[BlackClock "0:00:10"]

1. d4 {[%clk 0:03:00]}  Nf6 {[%clk 0:02:58]} 2. c4 {[%clk 0:03:00]}  e6 {[%clk 0:02:53]} 3. Nf3 {[%clk 0:03:00]}  d5 {[%clk 0:02:53]} 4. g3 {[%clk 0:03:00]}  Bb4+ {[%clk 0:02:52]} 5. Bd2 {[%clk 0:02:59]}  Be7 {[%clk 0:02:52]} 6. Bg2 {[%clk 0:02:59]}  O-O {[%clk 0:02:52]} 7. O-O {[%clk 0:03:00]}  c6 {[%clk 0:02:52]} 8. Nc3 {[%clk 0:02:59]}  dxc4 {[%clk 0:02:48]} 9. a4 {[%clk 0:02:58]}  a5 {[%clk 0:02:44]} 10. e4 {[%clk 0:02:57]}  Na6 {[%clk 0:02:42]} 11. Bf4 {[%clk 0:02:50]}  Nb4 {[%clk 0:02:27]} 12. Ne5 {[%clk 0:02:50]}  c5 {[%clk 0:02:23]} 13. dxc5 {[%clk 0:02:36]}  Bxc5 {[%clk 0:02:19]} 14. Nxc4 {[%clk 0:02:36]}  Nd3 {[%clk 0:01:45]} 15. e5 {[%clk 0:02:26]}  Nxf4 {[%clk 0:01:33]} 16. gxf4 {[%clk 0:02:27]}  Qxd1 {[%clk 0:01:32]} 17. Rfxd1 {[%clk 0:02:22]}  Nh5 {[%clk 0:01:31]} 18. Ne2 {[%clk 0:02:13]}  g6 {[%clk 0:01:26]} 19. Nd6 {[%clk 0:02:06]}  Rb8 {[%clk 0:01:22]} 20. Bf3 {[%clk 0:02:00]}  Ng7 {[%clk 0:01:13]} 21. Ng3 {[%clk 0:01:58]}  f5 {[%clk 0:00:28]} 22. exf6 {[%clk 0:00:49]}  Bxd6 {[%clk 0:00:27]} 23. fxg7 {[%clk 0:00:39]}  Rd8 {[%clk 0:00:17]} 24. Rac1 {[%clk 0:00:32]}  Kxg7 {[%clk 0:00:15]} 25. Ne4 {[%clk 0:00:32]}  Be7 {[%clk 0:00:16]} 26. Rc7 {[%clk 0:00:25]}  Rxd1+ {[%clk 0:00:15]} 27. Bxd1 {[%clk 0:00:25]}  Kf8 {[%clk 0:00:16]} 28. Ng5 {[%clk 0:00:25]}  Ke8 {[%clk 0:00:12]} 29. Be2 {[%clk 0:00:20]}  Kd8 {[%clk 0:00:11]} 30. Rc2 {[%clk 0:00:21]}  Bd7 {[%clk 0:00:12]} 31. Rd2 {[%clk 0:00:20]}  Ke8 {[%clk 0:00:09]} 32. b3 {[%clk 0:00:20]}  Rc8 {[%clk 0:00:08]} 33. Bc4 {[%clk 0:00:18]}  Bxg5 {[%clk 0:00:09]} 34. fxg5 {[%clk 0:00:18]}  Rc5 {[%clk 0:00:09]} 35. f4 {[%clk 0:00:18]}  Rf5 {[%clk 0:00:09]} 36. Rd4 {[%clk 0:00:16]}  e5 {[%clk 0:00:08]} 37. Re4 {[%clk 0:00:16]}  Ke7 {[%clk 0:00:07]} 38. h4 {[%clk 0:00:08]}  Kd6 {[%clk 0:00:06]} 39. fxe5+ {[%clk 0:00:07]}  Rxe5 {[%clk 0:00:07]} 40. Rd4+ {[%clk 0:00:08]}  Ke7 {[%clk 0:00:08]} 41. Kf2 {[%clk 0:00:08]}  Bc6 {[%clk 0:00:08]} 42. Bd3 {[%clk 0:00:08]}  Rd5 {[%clk 0:00:08]} 43. Re4+ {[%clk 0:00:06]}  Kd6 {[%clk 0:00:09]} 44. Re3 {[%clk 0:00:07]}  Rd4 {[%clk 0:00:09]} 45. Kg3 {[%clk 0:00:06]}  Bd5 {[%clk 0:00:09]} 46. Bb5 {[%clk 0:00:05]}  Rb4 {[%clk 0:00:09]} 47. Bc4 {[%clk 0:00:02]}  Bxc4 {[%clk 0:00:09]} 48. bxc4 {[%clk 0:00:03]}  Rxc4 {[%clk 0:00:10]} 49. Rb3 {[%clk 0:00:03]}  Kc6 {[%clk 0:00:11]} 50. Rf3 {[%clk 0:00:04]}  Rxa4 {[%clk 0:00:11]} 51. Rf7 {[%clk 0:00:04]}  Rb4 {[%clk 0:00:11]} 52. Rxh7 {[%clk 0:00:05]}  a4 {[%clk 0:00:12]} 53. h5 {[%clk 0:00:04]}  gxh5 {[%clk 0:00:11]} 54. Rxh5 {[%clk 0:00:05]}  a3 {[%clk 0:00:11]} 55. g6 {[%clk 0:00:06]}  a2 {[%clk 0:00:10]} 56. Rh1 {[%clk 0:00:06]}  Rb1 {[%clk 0:00:10]} 57. Rh6 {[%clk 0:00:06]}  a1=Q {[%clk 0:00:10]} 58. g7+ {[%clk 0:00:06]}  Kc7 {[%clk 0:00:11]} 59. g8=Q {[%clk 0:00:06]}  Rg1+ {[%clk 0:00:11]} 60. Kh4 {[%clk 0:00:07]}  Qd4+ {[%clk 0:00:10]} 61. Kh5 {[%clk 0:00:06]}  Qe5+ {[%clk 0:00:10]} 62. Kh4 {[%clk 0:00:06]}  Qh2# {[%clk 0:00:10]} 0-1


[Site "https://www.chess.com"]